fUST/lending_fUST_20251229
["ID","MTS","AMOUNT","RATE_DAILY","PERIOD"]
[399987131,1766980245923,-1680.0,0.00015066,2]
[399987132,1766980245933,-255.296984,0.00015068,2]
[399987133,1766980245943,-478.75725327,0.0001513,2]
[399987134,1766980245953,-273.4518902,0.0001515,20]
[399987135,1766980245962,-196.50341528,0.00015273,2]
[399987137,1766980245972,-599.01475941,0.00015432,2]
[399987139,1766980245986,-407.24134927,0.00015477,2]
[399987140,1766980245997,-231.52,0.000155,2]
[399987141,1766980246007,-406.01262158,0.00015529,2]
[399987142,1766980246016,-318.16069249,0.00015529,2]
[399987144,1766980246027,-572.68924649,0.00015529,2]
[399987145,1766980246036,-445.42980715,0.00015529,2]
[399987146,1766980246045,-406.2922721,0.00015529,2]
[399987147,1766980246057,-1018.11421598,0.00015529,2]
[399987148,1766980246066,-464.33402526,0.00015529,2]
[399987150,1766980246079,-407.92037941,0.00015529,2]
[399987151,1766980246089,-298.91218032,0.00015529,2]
[399987153,1766980246100,-389.37552756,0.00015529,2]
[399987155,1766980246110,-445.00060292,0.00015529,2]
[399987157,1766980246120,-160.0,0.00015575,2]
[399987159,1766980246130,-164.0,0.000156,2]
[399987161,1766980246140,-164.0,0.000156,2]
[399987162,1766980246150,-2762.53830303,0.00015641,2]
[399987164,1766980246160,-209.8999081,0.00015645,2]
[399987165,1766980246169,-155.0,0.00015657,2]
[399987166,1766980246179,-496.47127164,0.00015678,2]
[399987167,1766980246188,-155.0,0.00015726,2]
[399987168,1766980246198,-155.0,0.00015726,2]
[399987169,1766980246208,-155.0,0.00015726,2]
[399987170,1766980246217,-155.0,0.00015726,2]
[399987171,1766980246227,-155.0,0.00015726,2]
[399987172,1766980246236,-155.0,0.00015726,2]
[399987173,1766980246246,-155.0,0.00015726,2]
[399987174,1766980246256,-155.0,0.00015726,2]
[399987175,1766980246265,-155.0,0.00015726,2]
[399987176,1766980246274,-155.0,0.00015726,2]
[399987177,1766980246283,-155.0,0.00015726,2]
[399987178,1766980246292,-155.0,0.00015726,2]
[399987179,1766980246303,-155.0,0.00015726,2]
[399987180,1766980246312,-155.0,0.00015726,2]
[399987181,1766980246321,-155.0,0.00015726,2]
[399987182,1766980246332,-155.0,0.00015726,2]
[399987183,1766980246341,-155.0,0.00015726,2]
[399987184,1766980246350,-155.0,0.00015726,2]
[399987185,1766980246360,-155.0,0.00015726,2]
[399987186,1766980246369,-155.0,0.00015726,2]
[399987187,1766980246378,-155.0,0.00015726,2]
[399987188,1766980246389,-155.0,0.00015726,2]
[399987189,1766980246399,-155.0,0.00015726,2]
[399987190,1766980246408,-155.0,0.00015726,2]
[399987191,1766980246418,-155.0,0.00015726,2]
[399987192,1766980246429,-156.54832203,0.00015726,2]
[399987193,1766980246438,-10000.0,0.00015757,2]
[399987194,1766980246448,-10985.50319369,0.00015948,2]
[399987195,1766980246459,-151.46378206,0.00015951,2]
[399987196,1766980246469,-177.32107648,0.00015951,2]
[399987197,1766980246478,-184.80545578,0.00016046,2]
[399987198,1766980246488,-260.0,0.00016123,2]
[399987199,1766980246498,-514.84070869,0.00016226,2]
[399987200,1766980246508,-178.06200183,0.00016236,2]
[399987201,1766980246518,-1697.70379371,0.00016428,2]
[399987202,1766980246528,-500.0,0.00016438,2]
[399987203,1766980246538,-323.75277857,0.00016438,2]
[399987204,1766980246551,-2351.0,0.00016449,2]
[399987205,1766980246561,-362.0,0.00016449,2]
[399987206,1766980246571,-587.0,0.00016449,2]
[399987207,1766980246583,-287.0,0.00016449,2]
[399987208,1766980246593,-184.80545578,0.00016543,2]
[399987209,1766980246603,-2325.0,0.00016572,2]
[399987210,1766980246613,-360.0,0.00016671,2]
[399987211,1766980246624,-533.88981491,0.00016774,2]
[399987212,1766980246635,-209.8999081,0.00016789,2]
[399987213,1766980246646,-241.21769921,0.00016904,2]
[399987214,1766980246656,-627.0,0.00017071,2]
[399987215,1766980246667,-1364.0,0.00017071,2]
[399987216,1766980246677,-2156.0,0.00017071,2]
[399987217,1766980246687,-150.158,0.00017071,2]
[399987218,1766980246696,-460.0,0.00017219,2]
[399987219,1766980246707,-226.47851252,0.00017273,2]
[399987220,1766980246717,-553.64373807,0.00017322,2]
[399987221,1766980246726,-184.80545578,0.00017602,2]
[399987222,1766980246737,-663.0,0.00017622,2]
[399987223,1766980246746,-560.0,0.00017767,2]
[399987224,1766980246756,-500.0,0.00017808,2]
[399987225,1766980246766,-574.12855637,0.0001787,2]
[399987226,1766980246775,-663.0,0.00017891,2]
[399987227,1766980246785,-164.0,0.000179,2]
[399987228,1766980246794,-209.8999081,0.00017934,2]
[399987229,1766980246804,-500.0,0.00017945,2]
[399987230,1766980246813,-5920.09290199,0.00018,5]
[399987231,1766980246822,-823.0,0.00018026,2]
[399987232,1766980246833,-1544.0,0.00018027,2]
[399987233,1766980246842,-1285.0,0.00018058,2]
[399987234,1766980246851,-500.0,0.00018082,2]
[399987235,1766980246860,-1285.0,0.00018156,2]
[399987236,1766980246871,-663.0,0.00018171,2]
[399987237,1766980246882,-663.0,0.00018194,2]
[399987238,1766980246892,-500.0,0.00018219,2]
[399987239,1766980246903,-663.0,0.0001825,2]
[399987240,1766980246912,-663.0,0.00018284,2]
[399987241,1766980246923,-660.0,0.00018315,2]
[399987242,1766980246932,-500.0,0.00018356,2]
[399987243,1766980246942,-1285.0,0.00018356,2]
[399987244,1766980246951,-1285.0,0.00018375,2]
[399987245,1766980246961,-663.0,0.00018395,2]
[399987246,1766980246973,-212.0,0.00018411,3]
[399987247,1766980246987,-595.37131296,0.00018418,2]
[399987248,1766980246997,-500.0,0.00018493,2]
[399987249,1766980247006,-255.296984,0.00018493,2]
[399987250,1766980247017,-663.0,0.00018495,2]
[399987251,1766980247026,-663.0,0.00018548,2]
[399987252,1766980247036,-604.77651557,0.0001863,2]
[399987253,1766980247047,-663.0,0.00018657,2]
[399987254,1766980247058,-1285.0,0.00018713,2]
[399987255,1766980247068,-663.0,0.00018766,2]
[399987256,1766980247078,-1283.3406419,0.00018859,2]
[399987257,1766980247088,-323.72745024,0.0001886,7]
[399987258,1766980247097,-760.0,0.00018863,2]
[399987259,1766980247108,-303.03030303,0.000189,2]
[399987260,1766980247118,-1285.0,0.00018951,2]
[399987261,1766980247127,-617.40005154,0.00018966,2]
[399987262,1766980247136,-619.905457,0.0001899,2]
[399987263,1766980247146,-619.905457,0.0001899,2]
[399987264,1766980247156,-619.905457,0.0001899,2]
[399987265,1766980247165,-619.905457,0.0001899,2]
[399987266,1766980247175,-100000.0,0.0001899,2]
[399987267,1766980247187,-151.0,0.0001899,2]
[399987268,1766980247199,-663.0,0.00018992,2]
[399987269,1766980247208,-209.8999081,0.00019078,2]
[399987270,1766980247218,-10000.0,0.00019078,2]
[399987271,1766980247227,-453.33526963,0.00019089,2]
[399987272,1766980247236,-164.0,0.000191,3]
[399987273,1766980247246,-167.0,0.000191,3]
[399987274,1766980247255,-5000.0,0.00019178,2]
[399987275,1766980247264,-167.933848,0.00019178,2]
[399987276,1766980247274,-151.0,0.00019178,2]
[399987277,1766980247283,-151.0,0.00019178,2]
[399987278,1766980247293,-151.0,0.00019178,2]
[399987279,1766980247302,-151.0,0.00019178,2]
[399987280,1766980247311,-151.0,0.00019178,2]
[399987281,1766980247323,-151.0,0.00019178,2]
[399987282,1766980247335,-151.0,0.00019178,2]
[399987283,1766980247344,-151.0,0.00019178,2]
[399987284,1766980247354,-151.0,0.00019178,2]
[399987285,1766980247364,-151.0,0.00019178,2]
[399987286,1766980247374,-151.0,0.00019178,2]
[399987287,1766980247383,-153.304838,0.00019178,2]
[399987288,1766980247392,-151.0,0.00019178,2]
[399987289,1766980247402,-151.0,0.00019178,2]
[399987290,1766980247411,-151.0,0.00019178,2]
[399987291,1766980247420,-151.0,0.00019178,2]
[399987292,1766980247430,-151.0,0.00019178,2]
[399987293,1766980247439,-151.0,0.00019178,2]
[399987294,1766980247448,-503.96888,0.00019178,2]
[399987295,1766980247457,-503.96888,0.00019178,2]
[399987296,1766980247467,-503.96888,0.00019178,2]
[399987297,1766980247478,-503.96888,0.00019178,2]
[399987298,1766980247489,-151.0,0.00019178,2]
[399987299,1766980247500,-172.576134,0.00019178,2]
[399987300,1766980247510,-545.654718,0.00019178,2]
[399987301,1766980247524,-545.654718,0.00019178,2]
[399987302,1766980247535,-545.654718,0.00019178,2]
[399987303,1766980247546,-545.654718,0.00019178,2]
[399987304,1766980247557,-151.0,0.00019178,2]
[399987305,1766980247567,-151.0,0.00019178,2]
[399987306,1766980247580,-151.0,0.00019178,2]
[399987307,1766980247591,-158.684423,0.00019178,2]
[399987308,1766980247601,-151.0,0.00019178,2]
[399987309,1766980247611,-151.0,0.00019178,2]
[399987310,1766980247621,-151.0,0.00019178,2]
[399987311,1766980247632,-151.0,0.00019178,2]
[399987312,1766980247642,-151.0,0.00019178,2]
[399987313,1766980247651,-155.416884,0.00019178,2]
[399987314,1766980247661,-151.0,0.00019178,2]
[399987315,1766980247671,-151.0,0.00019178,2]
[399987316,1766980247681,-151.0,0.00019178,2]
[399987317,1766980247690,-169.625181,0.00019178,2]
[399987318,1766980247896,-151.0,0.00019178,2]
[399987319,1766980247906,-151.0,0.00019178,2]
[399987320,1766980247915,-151.0,0.00019178,2]
[399987321,1766980247925,-151.0,0.00019178,2]
[399987322,1766980247935,-151.0,0.00019178,2]
[399987323,1766980247945,-151.0,0.00019178,2]
[399987324,1766980247954,-151.0,0.00019178,2]
[399987325,1766980247965,-151.0,0.00019178,2]
[399987326,1766980247978,-151.0,0.00019178,2]
[399987327,1766980247988,-151.0,0.00019178,2]
[399987328,1766980247999,-186.176167,0.00019178,2]
[399987329,1766980248009,-151.0,0.00019178,2]
[399987330,1766980248018,-151.0,0.00019178,2]
[399987331,1766980248027,-186.176167,0.00019178,2]
[399987332,1766980248038,-151.0,0.00019178,2]
[399987333,1766980248048,-151.0,0.00019178,2]
[399987334,1766980248058,-186.176167,0.00019178,2]
[399987335,1766980248067,-151.0,0.00019178,2]
[399987336,1766980248076,-186.176167,0.00019178,2]
[399987337,1766980248085,-151.0,0.00019178,2]
[399987338,1766980248095,-151.0,0.00019178,2]
[399987339,1766980248104,-151.0,0.00019178,2]
[399987340,1766980248114,-151.0,0.00019178,2]
[399987341,1766980248124,-151.0,0.00019178,2]
[399987342,1766980248134,-317.846058,0.00019178,2]
[399987343,1766980248143,-317.846058,0.00019178,2]
[399987344,1766980248154,-317.846058,0.00019178,2]
[399987345,1766980248163,-317.846058,0.00019178,2]
[399987346,1766980248176,-151.0,0.00019178,2]
[399987347,1766980248185,-151.0,0.00019178,2]
[399987348,1766980248194,-151.0,0.00019178,2]
[399987349,1766980248203,-163.04457,0.00019178,2]
[399987350,1766980248212,-163.04457,0.00019178,2]
[399987351,1766980248221,-163.04457,0.00019178,2]
[399987352,1766980248232,-163.04457,0.00019178,2]
[399987353,1766980248242,-151.0,0.00019178,2]
[399987354,1766980248254,-223.767963,0.00019178,2]
[399987355,1766980248264,-262.001019,0.00019178,2]
[399987356,1766980248274,-151.0,0.00019178,2]
[399987357,1766980248283,-151.2146,0.00019178,2]
[399987358,1766980248294,-151.0,0.00019178,2]
[399987359,1766980248303,-157.035377,0.00019178,2]
[399987360,1766980248313,-151.0,0.00019178,2]
[399987361,1766980248322,-220.032518,0.00019178,2]
[399987362,1766980248333,-151.0,0.00019178,2]
[399987363,1766980248342,-151.0,0.00019178,2]
[399987364,1766980248351,-151.0,0.00019178,2]
[399987365,1766980248360,-151.0,0.00019178,2]
[399987366,1766980248369,-151.0,0.00019178,2]
[399987367,1766980248378,-191.454773,0.00019178,2]
[399987368,1766980248387,-191.454773,0.00019178,2]
[399987369,1766980248395,-191.454773,0.00019178,2]
[399987370,1766980248404,-191.454773,0.00019178,2]
[399987371,1766980248413,-264.968395,0.00019178,2]
[399987372,1766980248423,-151.0,0.00019178,2]
[399987373,1766980248432,-264.968395,0.00019178,2]
[399987374,1766980248442,-351.21589,0.00019178,2]
[399987375,1766980248450,-264.968395,0.00019178,2]
[399987376,1766980248460,-239.00015,0.00019178,2]
[399987377,1766980248470,-351.21589,0.00019178,2]
[399987378,1766980248478,-264.968395,0.00019178,2]
[399987379,1766980248487,-351.21589,0.00019178,2]
[399987380,1766980248496,-351.21589,0.00019178,2]
[399987381,1766980248505,-1856.12,0.000192,2]
[399987382,1766980248513,-169.37,0.000192,2]
[399987383,1766980248522,-173.81,0.000192,2]
[399987384,1766980248531,-1285.0,0.00019215,2]
[399987385,1766980248540,-1285.0,0.00019223,2]
[399987386,1766980248549,-1697.70379371,0.00019256,2]
[399987387,1766980248559,-256.45360977,0.00019273,2]
[399987388,1766980248569,-1285.0,0.0001928,2]
[399987389,1766980248578,-1285.0,0.00019312,2]
[399987390,1766980248587,-860.0,0.00019411,2]
[399987391,1766980248597,-308.3875453,0.00019507,2]
[399987392,1766980248606,-153.0,0.00019507,2]
[399987393,1766980248615,-153.0,0.00019507,2]
[399987394,1766980248624,-153.0,0.00019507,2]
[399987395,1766980248634,-640.24385345,0.00019514,2]
[399987396,1766980248644,-213.90677365,0.0001954,12]
[399987397,1766980248654,-151.0,0.00019545,2]
[399987398,1766980248664,-151.0,0.00019545,2]
[399987399,1766980248673,-151.0,0.00019545,2]
[399987400,1766980248683,-151.0,0.00019545,2]
[399987401,1766980248692,-151.0,0.00019545,2]
[399987402,1766980248701,-151.0,0.00019545,2]
[399987403,1766980248710,-151.0,0.00019545,2]
[399987404,1766980248720,-151.0,0.00019545,2]
[399987405,1766980248730,-151.0,0.00019545,2]
[399987406,1766980248738,-151.0,0.00019545,2]
[399987407,1766980248748,-151.0,0.00019545,2]
[399987408,1766980248757,-151.0,0.00019545,2]
[399987409,1766980248766,-184.789263,0.00019545,2]
[399987410,1766980248775,-151.0,0.00019545,2]
[399987411,1766980248785,-503.96888,0.00019545,2]
[399987412,1766980248795,-503.96888,0.00019545,2]
[399987413,1766980248804,-503.96888,0.00019545,2]
[399987414,1766980248813,-503.96888,0.00019545,2]
[399987415,1766980248823,-158.72509,0.00019545,2]
[399987416,1766980248833,-545.654718,0.00019545,2]
[399987417,1766980248843,-545.654718,0.00019545,2]
[399987418,1766980248851,-545.654718,0.00019545,2]
[399987419,1766980248860,-545.654718,0.00019545,2]
[399987420,1766980248870,-151.0,0.00019545,2]
[399987421,1766980248879,-151.0,0.00019545,2]
[399987422,1766980248888,-151.0,0.00019545,2]
[399987423,1766980248898,-156.780943,0.00019545,2]
[399987424,1766980248907,-151.0,0.00019545,2]
[399987425,1766980248916,-151.0,0.00019545,2]
[399987426,1766980248926,-151.0,0.00019545,2]
[399987427,1766980248935,-151.0,0.00019545,2]
[399987428,1766980248944,-619.905457,0.00019545,2]
[399987429,1766980248953,-151.0,0.00019545,2]
[399987430,1766980248967,-619.905457,0.00019545,2]
[399987431,1766980248982,-151.0,0.00019545,2]
[399987432,1766980248998,-619.905457,0.00019545,2]
[399987433,1766980249013,-619.905457,0.00019545,2]
[399987434,1766980249023,-151.0,0.00019545,2]
[399987435,1766980249032,-151.0,0.00019545,2]
[399987436,1766980249041,-296.956061,0.00019545,2]
[399987437,1766980249051,-151.0,0.00019545,2]
[399987438,1766980249061,-151.0,0.00019545,2]
[399987439,1766980249070,-151.0,0.00019545,2]
[399987440,1766980249079,-151.000016,0.00019545,2]
[399987441,1766980249088,-155.874962,0.00019545,2]
[399987442,1766980249097,-151.0,0.00019545,2]
[399987443,1766980249106,-151.0,0.00019545,2]
[399987444,1766980249115,-151.0,0.00019545,2]
[399987445,1766980249124,-186.176167,0.00019545,2]
[399987446,1766980249133,-151.0,0.00019545,2]
[399987447,1766980249142,-151.0,0.00019545,2]
[399987448,1766980249152,-186.176167,0.00019545,2]
[399987449,1766980249161,-151.0,0.00019545,2]
[399987450,1766980249171,-151.0,0.00019545,2]
[399987451,1766980249180,-274.762247,0.00019545,2]
[399987452,1766980249189,-186.176167,0.00019545,2]
[399987453,1766980249198,-186.176167,0.00019545,2]
[399987454,1766980249207,-151.0,0.00019545,2]
[399987455,1766980249216,-151.0,0.00019545,2]
[399987456,1766980249226,-151.0,0.00019545,2]
[399987457,1766980249235,-279.034572,0.00019545,2]
[399987458,1766980249244,-173.08705,0.00019545,2]
[399987459,1766980249253,-317.846058,0.00019545,2]
[399987460,1766980249264,-317.846058,0.00019545,2]
[399987461,1766980249273,-317.846058,0.00019545,2]
[399987462,1766980249284,-317.846058,0.00019545,2]
[399987463,1766980249294,-151.0,0.00019545,2]
[399987464,1766980249303,-151.0,0.00019545,2]
[399987465,1766980249313,-151.0,0.00019545,2]
[399987466,1766980249323,-163.04457,0.00019545,2]
[399987467,1766980249333,-163.04457,0.00019545,2]
[399987468,1766980249343,-163.04457,0.00019545,2]
[399987469,1766980249352,-163.04457,0.00019545,2]
[399987470,1766980249362,-151.0,0.00019545,2]
[399987471,1766980249374,-194.222755,0.00019545,2]
[399987472,1766980249383,-207.513578,0.00019545,2]
[399987473,1766980249393,-151.0,0.00019545,2]
[399987474,1766980249403,-151.0,0.00019545,2]
[399987475,1766980249412,-151.0,0.00019545,2]
[399987476,1766980249423,-156.011462,0.00019545,2]
[399987477,1766980249435,-151.0,0.00019545,2]
[399987478,1766980249444,-151.0,0.00019545,2]
[399987479,1766980249454,-191.454773,0.00019545,2]
[399987480,1766980249463,-191.454773,0.00019545,2]
[399987481,1766980249474,-191.454773,0.00019545,2]
[399987482,1766980249484,-191.454773,0.00019545,2]
[399987483,1766980249493,-151.0,0.00019545,2]
[399987484,1766980249502,-264.968395,0.00019545,2]
[399987485,1766980249512,-151.0,0.00019545,2]
[399987486,1766980249522,-264.968395,0.00019545,2]
[399987487,1766980249532,-351.21589,0.00019545,2]
[399987488,1766980249541,-264.968395,0.00019545,2]
[399987489,1766980249551,-351.21589,0.00019545,2]
[399987490,1766980249561,-264.968395,0.00019545,2]
[399987491,1766980249571,-351.21589,0.00019545,2]
[399987492,1766980249581,-351.21589,0.00019545,2]
[399987493,1766980249596,-1285.0,0.00019545,2]
[399987494,1766980249610,-1285.0,0.00019563,2]
[399987495,1766980249623,-1285.0,0.0001967,2]
[399987496,1766980249635,-1152.0,0.00019755,2]
[399987497,1766980249649,-500.0,0.00019907,7]
[399987498,1766980249659,-267.68373434,0.00019959,2]
[399987499,1766980249670,-1200.0,0.0002,5]
[399987500,1766980249681,-1042.0,0.0002,2]
[399987501,1766980249693,-500.0,0.0002,2]
[399987502,1766980249704,-2672.0,0.0002,5]
[399987503,1766980249715,-151.5294847,0.0002,7]
[399987504,1766980249727,-151.59432815,0.0002,2]
[399987505,1766980249738,-599.01475941,0.00020013,2]
[399987506,1766980249750,-663.93287602,0.00020062,2]
[399987507,1766980249763,-627.0,0.00020071,2]
[399987508,1766980249773,-1364.0,0.00020071,2]
[399987509,1766980249785,-2156.0,0.00020071,2]
[399987510,1766980249797,-460.536719,0.00020187,2]
[399987511,1766980249810,-213.90677365,0.00020221,13]
[399987512,1766980249821,-153.0,0.00020329,2]
[399987513,1766980249832,-155.4056108,0.00020329,2]
[399987514,1766980249843,-153.0,0.00020329,2]
[399987515,1766980249855,-153.0,0.00020329,2]
[399987516,1766980249867,-306.0,0.00020329,2]
[399987517,1766980249878,-153.0,0.00020329,2]
[399987518,1766980249890,-2400.01,0.00020474,2]
[399987519,1766980249901,-426.532678,0.00020548,2]
[399987520,1766980249914,-166.0,0.00020603,3]
[399987521,1766980249927,-688.49839244,0.0002061,2]
[399987522,1766980249937,-2000.0,0.00020644,7]
[399987523,1766980249950,-191.82476049,0.00020849,30]
[399987524,1766980249960,-213.90677365,0.00020901,14]
[399987525,1766980249971,-191.82476049,0.00020959,30]
[399987526,1766980249982,-164.137859,0.00021,2]
[399987527,1766980249994,-1856.12,0.00021,2]
[399987528,1766980250005,-191.82476049,0.00021068,30]
[399987529,1766980250016,-191.82476049,0.00021151,30]
[399987530,1766980250028,-153.0,0.00021151,2]
[399987531,1766980250040,-174.2814644,0.00021151,2]
[399987532,1766980250052,-153.0,0.00021151,2]
[399987533,1766980250064,-153.0,0.00021151,2]
[399987534,1766980250075,-153.0,0.00021151,2]
[399987535,1766980250087,-153.0,0.00021151,2]
[399987536,1766980250099,-153.0,0.00021151,2]
[399987537,1766980250111,-153.0,0.00021151,2]
[399987538,1766980250122,-153.0,0.00021151,2]
[399987539,1766980250134,-307.4894839,0.00021151,2]
[399987540,1766980250145,-713.97283296,0.00021158,2]
[399987541,1766980250155,-191.82476049,0.0002126,30]
[399987542,1766980250165,-286.42870701,0.00021273,2]
[399987543,1766980250175,-191.82476049,0.0002137,30]
[399987544,1766980250184,-191.82476049,0.00021452,30]
[399987545,1766980250195,-191.82476049,0.00021562,30]
[399987546,1766980250207,-213.90677365,0.00021582,16]
[399987547,1766980250220,-435.0,0.00021649,2]
[399987548,1766980250231,-191.82476049,0.00021671,30]
[399987549,1766980250244,-740.38982778,0.00021706,2]
[399987550,1766980250255,-191.82476049,0.00021781,30]
[399987551,1766980250266,-191.82476049,0.00021863,30]
[399987552,1766980250278,-180.0,0.00021893,2]
[399987553,1766980250289,-169.37,0.000219,2]
[399987554,1766980250301,-173.81,0.000219,2]
[399987555,1766980250316,-5000.0,0.00021901,2]
[399987556,1766980250332,-255.296984,0.00021918,2]
[399987557,1766980250343,-2000.0,0.00021934,7]
[399987558,1766980250356,-191.82476049,0.00021973,30]
[399987559,1766980250368,-600.0,0.00021981,10]
[399987560,1766980250381,-501.63207536,0.00022,2]
[399987561,1766980250395,-2084.0,0.00022,2]
[399987562,1766980250406,-1628.82,0.00022,7]
[399987563,1766980250417,-2335.52228938,0.00022,2]
[399987564,1766980250428,-151.0,0.00022,2]
[399987565,1766980250439,-151.0,0.00022,2]
[399987566,1766980250449,-151.0,0.00022,2]
[399987567,1766980250460,-246.99527769,0.00022,2]
[399987568,1766980250471,-151.0,0.00022,2]
[399987569,1766980250483,-238.800688,0.00022,2]
[399987570,1766980250496,-151.0,0.00022,2]
[399987571,1766980250515,-151.0,0.00022,2]
[399987572,1766980250527,-151.0,0.00022,2]
[399987573,1766980250538,-151.0,0.00022,2]
[399987574,1766980250549,-151.0,0.00022,2]
[399987575,1766980250560,-264.213056,0.00022,2]
[399987576,1766980250571,-151.0,0.00022,2]
[399987577,1766980250585,-503.96888,0.00022,2]
[399987578,1766980250596,-503.96888,0.00022,2]
[399987579,1766980250607,-503.96888,0.00022,2]
[399987580,1766980250618,-503.96888,0.00022,2]
[399987581,1766980250628,-545.654718,0.00022,2]
[399987582,1766980250639,-545.654718,0.00022,2]
[399987583,1766980250650,-545.654718,0.00022,2]
[399987584,1766980250660,-545.654718,0.00022,2]
[399987585,1766980250671,-151.0,0.00022,2]
[399987586,1766980250682,-151.0,0.00022,2]
[399987587,1766980250693,-154.172932,0.00022,2]
[399987588,1766980250704,-153.602005,0.00022,2]
[399987589,1766980250718,-151.0,0.00022,2]
[399987590,1766980250728,-151.0,0.00022,2]
[399987591,1766980250738,-151.0,0.00022,2]
[399987592,1766980250749,-619.905457,0.00022,2]
[399987593,1766980250760,-151.0,0.00022,2]
[399987594,1766980250770,-619.905457,0.00022,2]
[399987595,1766980250782,-183.218255,0.00022,2]
[399987596,1766980250792,-619.905457,0.00022,2]
[399987597,1766980250803,-619.905457,0.00022,2]
[399987598,1766980250814,-151.0,0.00022,2]
[399987599,1766980250824,-151.0,0.00022,2]
[399987600,1766980250837,-151.0,0.00022,2]
[399987601,1766980250848,-151.0,0.00022,2]
[399987602,1766980250859,-172.709716,0.00022,2]
[399987603,1766980250870,-218.06581,0.00022,2]
[399987604,1766980250881,-151.0,0.00022,2]
[399987605,1766980250892,-151.0,0.00022,2]
[399987606,1766980250903,-186.176167,0.00022,2]
[399987607,1766980250914,-151.0,0.00022,2]
[399987608,1766980250926,-151.0,0.00022,2]
[399987609,1766980250937,-186.176167,0.00022,2]
[399987610,1766980250948,-244.282425,0.00022,2]
[399987611,1766980250960,-151.0,0.00022,2]
[399987612,1766980250970,-186.176167,0.00022,2]
[399987613,1766980250982,-186.176167,0.00022,2]
[399987614,1766980250993,-151.0,0.00022,2]
[399987615,1766980251006,-293.357456,0.00022,2]
[399987616,1766980251017,-168.542447,0.00022,2]
[399987617,1766980251028,-317.846058,0.00022,2]
[399987618,1766980251038,-317.846058,0.00022,2]
[399987619,1766980251048,-317.846058,0.00022,2]
[399987620,1766980251062,-317.846058,0.00022,2]
[399987621,1766980251074,-151.0,0.00022,2]
[399987622,1766980251087,-151.0,0.00022,2]
[399987623,1766980251096,-151.0,0.00022,2]
[399987624,1766980251108,-166.0,0.00022,2]
[399987625,1766980251118,-163.04457,0.00022,2]
[399987626,1766980251128,-163.04457,0.00022,2]
[399987627,1766980251139,-163.04457,0.00022,2]
[399987628,1766980251151,-163.04457,0.00022,2]
[399987629,1766980251162,-153.021218,0.00022,2]
[399987630,1766980251173,-151.0,0.00022,2]
[399987631,1766980251184,-151.0,0.00022,2]
[399987632,1766980251194,-151.0,0.00022,2]
[399987633,1766980251204,-151.0,0.00022,2]
[399987634,1766980251215,-157.12058,0.00022,2]
[399987635,1766980251226,-191.454773,0.00022,2]
[399987636,1766980251236,-191.454773,0.00022,2]
[399987637,1766980251246,-191.454773,0.00022,2]
[399987638,1766980251257,-191.454773,0.00022,2]
[399987639,1766980251268,-156.562526,0.00022,2]
[399987640,1766980251279,-264.968395,0.00022,2]